fUST/lending_fUST_20250601
["ID","MTS","AMOUNT","RATE_DAILY","PERIOD"]
[363574104,1748772650725,-575.21926067,0.00021969,6]
[363574105,1748772650734,-140873.59,0.00022,7]
[363574106,1748772650744,-35915.15,0.00022,2]
[363574107,1748772650754,-173.0,0.00022,2]
[363574108,1748772650763,-212.80060342,0.00022,7]
[363574109,1748772650773,-333.0,0.00022,2]
[363574110,1748772650782,-7000.0,0.00022086,3]
[363574111,1748772650792,-500.0,0.00022146,2]
[363574112,1748772650801,-2601.2,0.00022158,2]
[363574113,1748772650811,-491.61,0.00022191,2]
[363574114,1748772650820,-896.34,0.00022191,2]
[363574115,1748772650829,-779.18,0.00022191,2]
[363574116,1748772650839,-780.77,0.00022191,2]
[363574117,1748772650848,-1690.51,0.00022191,2]
[363574118,1748772650858,-528.8,0.00022191,2]
[363574119,1748772650868,-453.05,0.00022191,2]
[363574120,1748772650878,-955.09,0.00022191,2]
[363574121,1748772650888,-625.62,0.00022191,2]
[363574122,1748772650898,-788.91,0.00022191,2]
[363574123,1748772650912,-728.4,0.00022191,2]
[363574124,1748772650921,-1415.88,0.00022191,2]
[363574125,1748772650931,-1217.89,0.00022191,2]
[363574126,1748772650942,-442.45,0.00022191,2]
[363574127,1748772650952,-333.0,0.00022192,7]
[363574128,1748772650962,-575.21926067,0.00022245,6]
[363574129,1748772650972,-462.02,0.000223,7]
[363574130,1748772650983,-150.0,0.000223,5]
[363574131,1748772650992,-153.0,0.00022301,2]
[363574132,1748772651002,-153.0,0.00022301,2]
[363574133,1748772651012,-223.0315306,0.00022376,2]
[363574134,1748772651022,-540.92288429,0.00022465,2]
[363574135,1748772651032,-491.61,0.00022465,2]
[363574136,1748772651042,-896.34,0.00022465,2]
[363574137,1748772651052,-779.18,0.00022465,2]
[363574138,1748772651062,-780.77,0.00022465,2]
[363574139,1748772651072,-1690.51,0.00022465,2]
[363574140,1748772651082,-528.8,0.00022465,2]
[363574141,1748772651092,-453.05,0.00022465,2]
[363574142,1748772651102,-955.09,0.00022465,2]
[363574143,1748772651112,-625.62,0.00022465,2]
[363574144,1748772651232,-788.91,0.00022465,2]
[363574145,1748772651242,-728.4,0.00022465,2]
[363574146,1748772651251,-1415.88,0.00022465,2]
[363574147,1748772651262,-1217.89,0.00022465,2]
[363574148,1748772651271,-442.45,0.00022465,2]
[363574149,1748772651281,-3683.53,0.000225,2]
[363574150,1748772651290,-575.21926067,0.00022521,7]
[363574151,1748772651299,-150.0,0.0002253,2]
[363574152,1748772651308,-160.69429476,0.00022671,2]
[363574153,1748772651317,-2000.0,0.000227,2]
[363574154,1748772651327,-491.67,0.00022739,2]
[363574155,1748772651336,-896.51,0.00022739,2]
[363574156,1748772651345,-779.38,0.00022739,2]
[363574157,1748772651354,-780.9075438,0.00022739,2]
[363574158,1748772651363,-1690.59553676,0.00022739,2]
[363574159,1748772651373,-529.0,0.00022739,2]
[363574160,1748772651383,-453.10982548,0.00022739,2]
[363574161,1748772651392,-955.12359613,0.00022739,2]
[363574162,1748772651402,-625.74,0.00022739,2]
[363574163,1748772651411,-789.06,0.00022739,2]
[363574164,1748772651420,-728.56,0.00022739,2]
[363574165,1748772651429,-1415.91,0.00022739,2]
[363574166,1748772651437,-1218.0,0.00022739,2]
[363574167,1748772651444,-442.45,0.00022739,2]
[363574168,1748772651452,-575.21926067,0.00022797,7]
[363574169,1748772651462,-500.85666673,0.00022909,8]
[363574170,1748772651470,-2000.0,0.00023,2]
[363574171,1748772651479,-356.4,0.00023,7]
[363574172,1748772651488,-160.0,0.00023,3]
[363574173,1748772651495,-19199.61115056,0.00023,2]
[363574174,1748772651503,-160.0,0.00023,3]
[363574175,1748772651511,-160.0,0.00023,3]
[363574176,1748772651520,-160.0,0.00023,3]
[363574177,1748772651530,-423.51412927,0.00023,3]
[363574178,1748772651540,-229.3709046,0.00023,3]
[363574179,1748772651550,-160.0,0.00023,3]
[363574180,1748772651561,-333.0,0.00023014,7]
[363574181,1748772651571,-3121.44,0.00023044,2]
[363574182,1748772651581,-575.21926067,0.00023072,8]
[363574183,1748772651591,-501.28489776,0.00023205,8]
[363574184,1748772651601,-140873.59,0.000233,7]
[363574185,1748772651611,-1218.730675,0.00023303,3]
[363574186,1748772651621,-9859.40490574,0.00023319,2]
[363574187,1748772651631,-5000.0,0.00023319,2]
[363574188,1748772651640,-5000.0,0.00023319,2]
[363574189,1748772651650,-5000.0,0.00023319,2]
[363574190,1748772651660,-5000.0,0.00023319,2]
[363574191,1748772651670,-30391.77,0.00023324,6]
[363574192,1748772651680,-122938.48,0.00023324,6]
[363574193,1748772651691,-575.21926067,0.00023348,9]
[363574194,1748772651701,-35915.15,0.000234,2]
[363574195,1748772651710,-5000.0,0.00023563,30]
[363574196,1748772651721,-5000.0,0.00023563,30]
[363574197,1748772651731,-5000.0,0.00023563,30]
[363574198,1748772651740,-5000.0,0.00023563,30]
[363574199,1748772651750,-5000.0,0.00023563,30]
[363574200,1748772651760,-5000.0,0.00023563,30]
[363574201,1748772651770,-5000.0,0.00023563,30]
[363574202,1748772651780,-5000.0,0.00023563,30]
[363574203,1748772651790,-5000.0,0.00023563,30]
[363574204,1748772651800,-5000.0,0.00023563,30]
[363574205,1748772651810,-5000.0,0.00023563,30]
[363574206,1748772651820,-5000.0,0.00023563,30]
[363574207,1748772651829,-5000.0,0.00023563,30]
[363574208,1748772651839,-5000.0,0.00023563,30]
[363574209,1748772651849,-5000.0,0.00023563,30]
[363574210,1748772651858,-5000.0,0.00023563,30]
[363574211,1748772651868,-5000.0,0.00023563,30]
[363574212,1748772651879,-5000.0,0.00023563,30]
[363574213,1748772651889,-5000.0,0.00023563,30]
[363574214,1748772651899,-5000.0,0.00023563,30]
[363574215,1748772651912,-5000.0,0.00023563,30]
[363574216,1748772651922,-5000.0,0.00023563,30]
[363574217,1748772651932,-1019.5,0.00023563,30]
[363574218,1748772651943,-500.0,0.00023623,6]
[363574219,1748772651953,-575.21926067,0.00023624,9]
[363574220,1748772651963,-15808.0646213,0.00023681,3]
[363574221,1748772651973,-80021.22054176,0.00023681,2]
[363574222,1748772651984,-423.51412927,0.00023681,3]
[363574223,1748772651994,-12666.87825251,0.00023681,30]
[363574224,1748772652003,-151.0,0.00023681,7]
[363574225,1748772652013,-152.99,0.000237,31]
[363574226,1748772652022,-152.99,0.000237,31]
[363574227,1748772652031,-152.99,0.000237,31]
[363574228,1748772652040,-152.99,0.000237,31]
[363574229,1748772652050,-152.99,0.000237,31]
[363574230,1748772652060,-152.99,0.000237,31]
[363574231,1748772652069,-152.99,0.000237,31]
[363574232,1748772652079,-152.99,0.000237,31]
[363574233,1748772652087,-152.99,0.000237,31]
[363574234,1748772652097,-152.99,0.000237,31]
[363574235,1748772652106,-152.99,0.000237,31]
[363574236,1748772652115,-152.99,0.000237,31]
[363574237,1748772652124,-152.99,0.000237,31]
[363574238,1748772652134,-152.99,0.000237,31]
[363574239,1748772652143,-152.99,0.000237,31]
[363574240,1748772652152,-2000.0,0.000237,2]
[363574241,1748772652161,-160.0,0.000237,3]
[363574242,1748772652170,-229.3709046,0.000237,3]
[363574243,1748772652180,-231.28369723,0.00023745,2]
[363574244,1748772652190,-188532.27353004,0.0002379,7]
[363574245,1748772652251,-430.0,0.00016438,2]
[363574246,1748772652260,-14954.78729512,0.0002379,7]
[363574247,1748772652549,-90.27704512,0.0002379,7]
[363574248,1748772652829,-765.3183213,0.00015984,2]
[363574249,1748772652839,-438.21954181,0.00016438,2]
[363574250,1748772652848,-430.0,0.00016438,2]
[363574251,1748772652857,-430.0,0.00016438,2]
[363574252,1748772652866,-219.75705089,0.00016438,2]
[363574254,1748772757419,163.69071144,0.00023899,120]
[363574255,1748772761283,163.54599551,0.00023899,120]
[363574260,1748772869300,-657.8818775,0.00015644,2]
[363574261,1748772869323,-556.22397874,0.00015945,2]
[363574262,1748772869345,-83.89414376,0.00016211,2]
[363574276,1748773131375,-220.0,0.00015945,2]
[363574309,1748773384747,549.469796,0.00013699,2]
[363574322,1748773549142,-3285.78714657,0.00015237,2]
[363574323,1748773549337,-1485.2961899,0.00015391,2]
[363574324,1748773549360,-1200.0,0.00015436,2]
[363574325,1748773549384,-244.0,0.00015436,2]
[363574326,1748773549407,-174.8095544,0.00015436,2]
[363574327,1748773549430,-529.05699147,0.00015437,2]
[363574329,1748773604006,-4000.0,0.00015437,2]
[363574331,1748773627113,-3742.62764582,0.00015283,2]
[363574332,1748773629986,-478.41077287,0.00015283,2]
[363574333,1748773630014,-1221.58922713,0.00015437,2]
[363574335,1748773639090,-778.96158131,0.00015283,2]
[363574336,1748773639115,-507.8162691,0.00015437,2]
[363574337,1748773639139,-2.4895915,0.00015945,2]
[363574338,1748773639165,-194.21784561,0.00016211,2]
[363574339,1748773639189,-156.24936687,0.00016338,2]
[363574340,1748773639215,-160.0,0.00016433,2]
[363574341,1748773639237,-102.8657485,0.00016435,2]
[363574342,1748773663806,-197.1342515,0.00016435,2]
[363574343,1748773663837,-300.0,0.00016436,2]
[363574344,1748773664122,-500.0,0.00016437,2]
[363574345,1748773664156,-2.8657485,0.00016437,2]
[363574395,1748773832038,-2191.50398952,0.00015622,2]
[363574396,1748773832096,-7808.49601048,0.00015622,2]
[363574397,1748773832106,-300.0,0.00016337,2]
[363574398,1748773832115,-156.24936685,0.00016338,2]
[363574399,1748773832125,-160.0,0.00016437,2]
[363574400,1748773832135,-246.59425869,0.00016437,2]
[363574402,1748773832144,-500.0,0.00016437,2]
[363574404,1748773832154,-500.0,0.00016437,2]
[363574406,1748773832164,-500.0,0.00016437,2]
[363574408,1748773832174,-500.0,0.00016437,2]
[363574409,1748773832184,-500.0,0.00016437,2]
[363574410,1748773832193,-500.0,0.00016437,2]
[363574411,1748773832202,-386.59185152,0.00016437,2]
[363574412,1748773832214,-500.0,0.00016437,2]
[363574413,1748773832224,-500.0,0.00016437,2]
[363574414,1748773832233,-500.0,0.00016437,2]
[363574415,1748773832243,-500.0,0.00016437,2]
[363574416,1748773832251,-500.0,0.00016437,2]
[363574417,1748773832258,-500.0,0.00016437,2]
[363574418,1748773832266,-500.0,0.00016437,2]
[363574419,1748773832275,-400.0,0.00016437,2]
[363574420,1748773832284,-500.0,0.00016437,2]
[363574421,1748773832293,-500.0,0.00016437,2]
[363574422,1748773832302,-198.75831735,0.00016437,2]
[363574423,1748773832312,-430.0,0.00016438,2]
[363574424,1748773832326,-430.0,0.00016438,2]
[363574425,1748773832336,-552.01732202,0.00016438,2]
[363574426,1748773832346,-430.0,0.00016438,2]
[363574427,1748773832356,-430.0,0.00016438,2]
[363574428,1748773832366,-436.35092718,0.00016438,2]
[363574429,1748773832376,-111.90151875,0.00016438,2]
[363574430,1748773832389,-233.99334294,0.00016438,2]
[363574431,1748773832401,-430.0,0.00016438,2]
[363574432,1748773832411,-104.75244903,0.00016438,2]
[363574433,1748773834026,164.258,0.00013699,2]
[363574472,1748773837967,-389.745308,0.00015437,2]
[363574474,1748773837977,-255.24755097,0.00016438,2]
[363574476,1748773837987,-430.0,0.00016438,2]
[363574478,1748773838002,-430.0,0.00016438,2]
[363574480,1748773838013,-470.0,0.00016438,2]
[363574482,1748773838022,-430.0,0.00016438,2]
[363574484,1748773838032,-433.73079762,0.00016438,2]
[363574486,1748773838042,-430.0,0.00016438,2]
[363574489,1748773838052,-430.0,0.00016438,2]
[363574491,1748773838061,-347.60372021,0.00016438,2]
[363574493,1748773838071,-430.0,0.00016438,2]
[363574495,1748773838080,-430.0,0.00016438,2]
[363574497,1748773838089,-430.0,0.00016438,2]
[363574499,1748773838099,-151.02126116,0.00016438,2]
[363574501,1748773838108,-400.0,0.00016438,2]
[363574503,1748773838118,-436.57179941,0.00016438,2]
[363574505,1748773838127,-402.31590047,0.00016438,2]
[363574507,1748773838136,-430.0,0.00016438,2]
[363574509,1748773838146,-430.0,0.00016438,2]
[363574511,1748773838156,-430.0,0.00016438,2]
[363574513,1748773838165,-430.0,0.00016438,2]
[363574515,1748773838175,-430.0,0.00016438,2]
[363574517,1748773838184,-367.69743656,0.00016438,2]
[363574519,1748773838194,-430.0,0.00016438,2]
[363574521,1748773838204,-430.0,0.00016438,2]
[363574523,1748773838213,-430.0,0.00016438,2]
[363574525,1748773838222,-430.0,0.00016438,2]
[363574527,1748773838232,-440.90862199,0.00016438,2]
[363574529,1748773838242,-430.0,0.00016438,2]
[363574531,1748773838251,-373.92717138,0.00016438,2]
[363574533,1748773838261,-490.0,0.00016438,2]
[363574535,1748773838271,-430.0,0.00016438,2]
[363574537,1748773838281,-430.0,0.00016438,2]
[363574539,1748773838290,-430.0,0.00016438,2]
[363574541,1748773838299,-430.0,0.00016438,2]
[363574543,1748773838309,-430.0,0.00016438,2]
[363574545,1748773838323,-430.0,0.00016438,2]
[363574547,1748773838332,-420.0,0.00016438,2]
[363574549,1748773838342,-430.0,0.00016438,2]
[363574551,1748773838351,-430.0,0.00016438,2]
[363574553,1748773838363,-430.0,0.00016438,2]
[363574555,1748773838372,-430.0,0.00016438,2]
[363574558,1748773838382,-430.0,0.00016438,2]
[363574560,1748773838393,-430.0,0.00016438,2]
[363574562,1748773838402,-430.0,0.00016438,2]
[363574564,1748773838412,-430.0,0.00016438,2]
[363574566,1748773838421,-430.0,0.00016438,2]
[363574568,1748773838431,-430.0,0.00016438,2]
[363574570,1748773838441,-430.0,0.00016438,2]
[363574572,1748773838450,-430.0,0.00016438,2]
[363574574,1748773838459,-435.53396256,0.00016438,2]
[363574576,1748773838469,-430.0,0.00016438,2]
[363574578,1748773838478,-430.0,0.00016438,2]
[363574580,1748773838489,-430.0,0.00016438,2]
[363574582,1748773838499,-207.77321708,0.00016438,2]
[363574584,1748773838508,-430.0,0.00016438,2]
[363574586,1748773838517,-264.49710687,0.00016438,2]
[363574588,1748773838527,-430.0,0.00016438,2]
[363574590,1748773838536,-430.0,0.00016438,2]
[363574592,1748773838546,-360.19880959,0.00016438,2]
[363574594,1748773838555,-410.11199095,0.00016438,2]
[363574596,1748773838563,-430.0,0.00016438,2]
[363574598,1748773838572,-430.0,0.00016438,2]
[363574600,1748773838580,-430.0,0.00016438,2]
[363574602,1748773838589,-430.0,0.00016438,2]
[363574604,1748773838597,-430.0,0.00016438,2]
[363574606,1748773838606,-430.0,0.00016438,2]
[363574608,1748773838615,-430.0,0.00016438,2]
[363574610,1748773838626,-430.0,0.00016438,2]
[363574612,1748773838635,-430.0,0.00016438,2]
[363574614,1748773838644,-430.0,0.00016438,2]
[363574616,1748773838654,-430.0,0.00016438,2]
[363574618,1748773838663,-430.0,0.00016438,2]
[363574620,1748773838673,-430.0,0.00016438,2]
[363574622,1748773838682,-430.0,0.00016438,2]
[363574624,1748773838692,-430.0,0.00016438,2]
[363574626,1748773838701,-430.0,0.00016438,2]
[363574628,1748773838711,-430.0,0.00016438,2]
[363574630,1748773838720,-430.0,0.00016438,2]
[363574632,1748773838730,-430.0,0.00016438,2]
[363574634,1748773838739,-342.53383866,0.00016438,2]
[363574636,1748773838749,-435.71138191,0.00016438,2]
[363574638,1748773838759,-311.25886417,0.00016438,2]
[363574640,1748773838767,-430.0,0.00016438,2]
[363574642,1748773838777,-430.0,0.00016438,2]
[363574645,1748773838787,-430.0,0.00016438,2]
[363574646,1748773838797,-430.0,0.00016438,2]
[363574649,1748773838807,-500.0,0.00016438,2]
[363574650,1748773838816,-430.0,0.00016438,2]
[363574652,1748773838825,-430.0,0.00016438,2]
[363574654,1748773838835,-197.48797932,0.00016438,2]
[363574656,1748773838844,-300.0,0.00016438,2]
[363574658,1748773838853,-430.0,0.00016438,2]
[363574661,1748773838864,-430.0,0.00016438,2]
[363574663,1748773838873,-370.0,0.00016438,2]
[363574665,1748773838882,-430.0,0.00016438,2]
[363574667,1748773838896,-430.0,0.00016438,2]
[363574668,1748773838905,-430.0,0.00016438,2]
[363574670,1748773838914,-430.0,0.00016438,2]
[363574672,1748773838923,-510.43404851,0.00016438,2]
[363574675,1748773838933,-437.02708098,0.00016438,2]
[363574677,1748773838946,-430.0,0.00016438,2]
[363574679,1748773838957,-431.37283145,0.00016438,2]
[363574681,1748773838966,-400.0,0.00016438,2]
[363574683,1748773838976,-422.79546738,0.00016438,2]
[363574685,1748773838985,-430.0,0.00016438,2]
[363574687,1748773838995,-430.0,0.00016438,2]
[363574689,1748773839005,-430.0,0.00016438,2]
[363574691,1748773839015,-430.0,0.00016438,2]
[363574693,1748773839024,-430.0,0.00016438,2]
[363574695,1748773839034,-430.0,0.00016438,2]
[363574698,1748773839044,-430.0,0.00016438,2]
[363574699,1748773839054,-430.0,0.00016438,2]
[363574701,1748773839063,-430.0,0.00016438,2]
[363574703,1748773839072,-277.91428655,0.00016438,2]
[363574705,1748773839082,-432.69597213,0.00016438,2]
[363574707,1748773839092,-430.0,0.00016438,2]
[363574709,1748773839101,-430.0,0.00016438,2]
[363574711,1748773839111,-430.0,0.00016438,2]
[363574713,1748773839120,-430.0,0.00016438,2]
[363574715,1748773839130,-430.0,0.00016438,2]
[363574718,1748773839140,-430.0,0.00016438,2]
[363574720,1748773839150,-430.0,0.00016438,2]
[363574722,1748773839159,-430.0,0.00016438,2]
[363574724,1748773839169,-430.0,0.00016438,2]
[363574726,1748773839179,-430.0,0.00016438,2]
[363574728,1748773839189,-430.0,0.00016438,2]
[363574730,1748773839199,-430.0,0.00016438,2]
[363574732,1748773839209,-430.0,0.00016438,2]
[363574734,1748773839218,-430.0,0.00016438,2]
[363574736,1748773839229,-430.0,0.00016438,2]
[363574738,1748773839239,-430.0,0.00016438,2]
[363574740,1748773839249,-430.0,0.00016438,2]
[363574741,1748773839259,-430.0,0.00016438,2]
[363574744,1748773839269,-242.6067223,0.00016438,2]
[363574746,1748773839278,-430.0,0.00016438,2]
[363574748,1748773839288,-430.0,0.00016438,2]
[363574750,1748773839298,-430.0,0.00016438,2]
[363574752,1748773839307,-430.0,0.00016438,2]
[363574754,1748773839317,-335.53661525,0.00016438,2]
[363574756,1748773839330,-502.99050234,0.00016438,2]
[363574758,1748773839340,-430.0,0.00016438,2]
[363574760,1748773839349,-430.0,0.00016438,2]
[363574762,1748773839360,-430.0,0.00016438,2]
[363574764,1748773839370,-430.0,0.00016438,2]
[363574766,1748773839380,-430.0,0.00016438,2]
[363574768,1748773839390,-430.0,0.00016438,2]
[363574770,1748773839400,-430.0,0.00016438,2]
[363574772,1748773839410,-430.0,0.00016438,2]
[363574774,1748773839421,-430.59663061,0.00016438,2]
[363574776,1748773839431,-430.0,0.00016438,2]
[363574778,1748773839440,-430.0,0.00016438,2]
[363574781,1748773839449,-430.24360275,0.00016438,2]
[363574784,1748773839459,-350.0,0.00016438,2]
[363574786,1748773839468,-430.0,0.00016438,2]
[363574788,1748773839478,-500.0,0.00016438,2]
[363574790,1748773839487,-430.0,0.00016438,2]
[363574792,1748773839497,-430.0,0.00016438,2]
[363574795,1748773839506,-430.0,0.00016438,2]
[363574798,1748773839515,-430.0,0.00016438,2]
[363574800,1748773839525,-430.0,0.00016438,2]
[363574802,1748773839534,-430.0,0.00016438,2]
[363574804,1748773839543,-430.0,0.00016438,2]
[363574806,1748773839552,-431.96845159,0.00016438,2]
[363574808,1748773839563,-430.0,0.00016438,2]
[363574810,1748773839573,-430.0,0.00016438,2]
[363574812,1748773839582,-430.0,0.00016438,2]
[363574815,1748773839591,-437.50239988,0.00016438,2]
[363574817,1748773839601,-430.0,0.00016438,2]
[363574819,1748773839611,-438.21954181,0.00016438,2]
[363574821,1748773839620,-430.9191991,0.00016438,2]
[363574823,1748773839630,-430.0,0.00016438,2]
[363574825,1748773839639,-430.0,0.00016438,2]
[363574827,1748773839649,-430.0,0.00016438,2]
[363574829,1748773839658,-430.0,0.00016438,2]
[363574831,1748773839668,-203.21947115,0.00016438,2]
[363574833,1748773839678,-430.0,0.00016438,2]
[363574835,1748773839688,-430.0,0.00016438,2]
[363574837,1748773839698,-430.0,0.00016438,2]
[363574839,1748773839707,-693.33,0.00016438,2]
[363574841,1748773839718,-430.0,0.00016438,2]
[363574843,1748773839728,-431.01955652,0.00016438,2]
[363574845,1748773839738,-531.75,0.00016438,2]
[363574847,1748773839748,-430.0,0.00016438,2]
[363574849,1748773839757,-430.0,0.00016438,2]
[363574851,1748773839767,-568.92821805,0.00016438,2]
[363574853,1748773839776,-430.0,0.00016438,2]
[363574855,1748773839786,-500.0,0.00016438,2]
[363574857,1748773839796,-430.0,0.00016438,2]
[363574859,1748773839805,-430.0,0.00016438,2]
[363574861,1748773839815,-430.0,0.00016438,2]
[363574863,1748773839825,-430.0,0.00016438,2]
[363574865,1748773839835,-430.0,0.00016438,2]
[363574868,1748773839845,-430.0,0.00016438,2]
[363574870,1748773839855,-430.0,0.00016438,2]
[363574872,1748773839866,-440.27,0.00016438,2]
[363574874,1748773839875,-430.0,0.00016438,2]
[363574876,1748773839885,-430.0,0.00016438,2]
[363574878,1748773839895,-430.0,0.00016438,2]
[363574880,1748773839904,-430.0,0.00016438,2]
[363574882,1748773839914,-164.93971599,0.00016438,2]
[363574884,1748773839924,-381.14827141,0.00016438,2]
[363574886,1748773839934,-430.0,0.00016438,2]
[363574888,1748773839944,-430.0,0.00016438,2]
[363574890,1748773839953,-430.0,0.00016438,2]
[363574892,1748773839963,-430.0,0.00016438,2]
[363574894,1748773839972,-595.14,0.00016438,2]
[363574896,1748773839982,-430.0,0.00016438,2]
[363574898,1748773839992,-430.0,0.00016438,2]
[363574900,1748773840002,-401.61429903,0.00016438,2]
[363574902,1748773840011,-430.0,0.00016438,2]
[363574904,1748773840021,-430.0,0.00016438,2]
[363574906,1748773840030,-430.0,0.00016438,2]
[363574908,1748773840040,-539.8692032,0.00016438,2]
[363574910,1748773840049,-430.0,0.00016438,2]
[363574912,1748773840059,-430.0,0.00016438,2]
[363574914,1748773840069,-430.0,0.00016438,2]
[363574916,1748773840079,-430.0,0.00016438,2]
[363574918,1748773840088,-488.40528453,0.00016438,2]
[363574920,1748773840098,-430.0,0.00016438,2]
[363574939,1748773840237,-430.0,0.00016438,2]
[363574942,1748773840248,-1033.78,0.00016438,2]
[363574944,1748773840257,-430.0,0.00016438,2]
[363574946,1748773840276,-430.0,0.00016438,2]
[363574949,1748773840288,-430.0,0.00016438,2]
[363574951,1748773840298,-430.0,0.00016438,2]
[363574953,1748773840309,-389.30021668,0.00016438,2]
[363574955,1748773840321,-430.0,0.00016438,2]
[363574957,1748773840333,-430.0,0.00016438,2]
[363574959,1748773840344,-404.20793641,0.00016438,2]
[363574961,1748773840354,-430.0,0.00016438,2]
[363574963,1748773840365,-450.89389746,0.00016438,2]
[363574965,1748773840375,-430.0,0.00016438,2]
[363574967,1748773840385,-439.0,0.00016438,2]
[363574969,1748773840395,-430.0,0.00016438,2]
[363574971,1748773840407,-430.0,0.00016438,2]
[363574974,1748773840418,-430.0,0.00016438,2]
[363574976,1748773840428,-430.0,0.00016438,2]
[363574978,1748773840438,-430.0,0.00016438,2]
[363574980,1748773840448,-430.0,0.00016438,2]
[363574982,1748773840459,-430.0,0.00016438,2]
[363574984,1748773840469,-430.0,0.00016438,2]
[363574986,1748773840479,-430.0,0.00016438,2]
[363574988,1748773840489,-430.0,0.00016438,2]
[363574990,1748773840499,-430.0,0.00016438,2]
[363574992,1748773840508,-430.0,0.00016438,2]
[363574994,1748773840520,-500.0,0.00016438,2]
[363574996,1748773840531,-430.0,0.00016438,2]
[363574997,1748773840540,-430.0,0.00016438,2]
[363574998,1748773840550,-430.0,0.00016438,2]
[363574999,1748773840559,-430.0,0.00016438,2]
[363575000,1748773840569,-405.2757365,0.00016438,2]
[363575001,1748773840578,-430.0,0.00016438,2]
[363575002,1748773840588,-430.0,0.00016438,2]
[363575003,1748773840597,-430.0,0.00016438,2]
[363575004,1748773840606,-430.0,0.00016438,2]
[363575005,1748773840615,-435.14661955,0.00016438,2]
[363575006,1748773840625,-430.0,0.00016438,2]
[363575007,1748773840635,-430.0,0.00016438,2]
[363575008,1748773840644,-430.0,0.00016438,2]
[363575009,1748773840653,-430.0,0.00016438,2]
[363575010,1748773840663,-430.0,0.00016438,2]
[363575011,1748773840672,-430.0,0.00016438,2]
[363575012,1748773840681,-430.0,0.00016438,2]
[363575013,1748773840691,-430.0,0.00016438,2]
[363575014,1748773840700,-500.0,0.00016438,2]
[363575015,1748773840710,-430.0,0.00016438,2]
[363575016,1748773840719,-430.0,0.00016438,2]
[363575017,1748773840729,-430.0,0.00016438,2]
[363575018,1748773840738,-430.0,0.00016438,2]
[363575019,1748773840748,-430.0,0.00016438,2]
[363575020,1748773840758,-430.0,0.00016438,2]
[363575022,1748773840768,-430.0,0.00016438,2]
[363575024,1748773840778,-430.0,0.00016438,2]
[363575026,1748773840788,-430.0,0.00016438,2]
[363575028,1748773840798,-430.0,0.00016438,2]
[363575030,1748773840808,-430.0,0.00016438,2]
[363575032,1748773840819,-628.21,0.00016438,2]
[363575034,1748773840830,-430.0,0.00016438,2]
[363575036,1748773840840,-430.0,0.00016438,2]
[363575039,1748773840851,-165.48957521,0.00016438,2]
[363575040,1748773840860,-430.0,0.00016438,2]
[363575042,1748773840872,-430.0,0.00016438,2]
[363575044,1748773840882,-570.78967365,0.00016438,2]
[363575046,1748773840892,-430.0,0.00016438,2]
[363575048,1748773840902,-430.0,0.00016438,2]
[363575050,1748773840912,-430.0,0.00016438,2]
[363575052,1748773840923,-430.0,0.00016438,2]